Cogmind - Beta 17.1 @@@ ROGUE MODE // 2026.09.14 @ 10:34:26 Player: 7H-NLC Result: Destroyed by G-47 Trooper with Particle Gun Performance ------------- Evolutions (2) 1000 Regions Visited (7) 1400 Robots Destroyed (89) 445 Value Destroyed (2927) 2927 Prototype IDs (28) 560 Alien Tech Used (0) 0 Bonus (1633) 1633 TOTAL SCORE: 7965 Bonus ------- High Alert Combat Kills 429 Follower Combat Kills 258 Entered Garrisons 200 Used RIF Installer 500 Aligned with FarCom 300 Friendly Fire -54 Cogmind --------- Core Integrity 0/550 Matter 113/300 Energy 150/150 System Corruption 13% Temperature Cool (18) Movement Treading (211) Ox1 Location -8/Materials Parts ------- > --- POWER (1) -------- Micro Nuclear Core (fused) > --- PROPULSION (3) --- Light Treads Armored Treads Advanced Treads > --- UTILITY (5) ------ Huge Storage Unit Improved Targeting Computer Relay Coupler [Swarmer] (24) Relay Coupler [Grunt] (22) Relay Coupler [Sentry] (5) > --- WEAPON (2) ------- Phase Cannon Remote Datajack > --- INVENTORY (25) --- Light Nuclear Core Light Treads Light Treads Light Treads High-capacity Storage Unit High-capacity Matter Pod (200) High-capacity Matter Pod (200) Core Shielding Utility Shielding Layered Light Armor Plating Layered Light Armor Plating Layered Light Armor Plating Focal Shield Hacking Suite Relay Coupler [Swarmer] (32) Relay Coupler [Grunt] (22) Relay Coupler [Sentry] (22) Relay Coupler [Hunter] (12) Shock Bomb Launcher Rocket Launcher Rocket Launcher Remote Datajack Plasma Cutter Peak State ------------ > --- POWER ------------ Micro Nuclear Core > --- PROPULSION ------- Light Treads Advanced Treads Wheel > --- UTILITY ---------- Huge Storage Unit Improved Targeting Computer Core Analyzer Layered Light Armor Plating Focal Shield > --- WEAPON ----------- AWS/Gauss > --- INVENTORY -------- Light Nuclear Core Light Treads Light Treads Light Treads High-capacity Storage Unit High-capacity Matter Pod High-capacity Matter Pod Layered Light Armor Plating Layered Light Armor Plating Relay Coupler [NC] Relay Coupler [NC] Relay Coupler [NC] Relay Coupler [Swarmer] Relay Coupler [Grunt] Relay Coupler [Grunt] Relay Coupler [Grunt] Relay Coupler [Brawler] Relay Coupler [Demolisher] Relay Coupler [Hunter] Phase Cannon Shock Bomb Launcher Rocket Launcher Rocket Launcher Remote Datajack Remote Datajack [Rating: 47] Favorites ----------- Power Improved Ion Engine Engine Improved Ion Engine Power Core Micro Nuclear Core Propulsion Light Treads Treads Light Treads Leg Carbon-fiber Leg Wheel Compact Wheel Utility Huge Storage Unit Device Focal Shield Storage Huge Storage Unit Processor Improved Targeting Computer Hackware Relay Coupler [Swarmer] Protection Light Armor Plating Weapon Assault Rifle Energy Gun Advanced Beam Rifle Energy Cannon Phase Cannon Ballistic Gun Assault Rifle Launcher Rocket Launcher Special Weapon Remote Datajack Impact Weapon Heavy Flail Build | -11 -10 -10 -10 -9 -8 -8 -8 ------- Run | Yrd Mat Min Exi Min Mat Gar Mat Slots Evolved 4 | . . . . . 4 . . Power . | . . . . . . . . Propulsion 1 | . . . . . 1 . . Utility 3 | . . . . . 3 . . Weapon . | . . . . . . . . Parts Attached 84 | 8 5 9 1 1 34 16 10 Power 9 | 2 . 2 . . 3 2 . Engine 6 | 2 . 2 . . 2 . . Core 3 | . . . . . 1 2 . Reactor . | . . . . . . . . Propulsion 21 | 2 2 2 . . 9 4 2 Treads 13 | . 2 2 . . 5 3 1 Leg 1 | . . . . . . . 1 Wheel 7 | 2 . . . . 4 1 . Hover . | . . . . . . . . Flight . | . . . . . . . . Utility 30 | 2 3 2 . . 10 6 7 Device 6 | 1 . . . . 3 2 . Storage 5 | 1 2 . . . 2 . . Processor 4 | . . . . . 3 1 . Hackware 6 | . . . . . . . 6 Protection 9 | . 1 2 . . 2 3 1 Artifact . | . . . . . . . . Weapon 24 | 2 . 3 1 1 12 4 1 Energy Gun 4 | . . . . . 4 . . Energy Cannon 1 | . . . . . . 1 . Ballistic Gun 9 | 2 . 2 . . 2 2 1 Ballistic Cannon . | . . . . . . . . Launcher 6 | . . 1 1 1 3 . . Special Weapon 2 | . . . . . 1 1 . Impact Weapon 2 | . . . . . 2 . . Slashing Weapon . | . . . . . . . . Piercing Weapon . | . . . . . . . . Special Melee Weapon . | . . . . . . . . Unidentified Prototypes 3 | . . . . . 2 . 1 Corrupted Parts 1 | . . . . . 1 . . System Corruption 11 | . . . . . 11 . . Parts Lost 22 | . . 3 . . 17 1 1 Power 4 | . . . . . 4 . . Propulsion 10 | . . 1 . . 7 1 1 Utility 3 | . . 1 . . 2 . . Weapon 5 | . . 1 . . 4 . . Highest Loss Streak 5 | . . 3 . . 5 1 1 To Critical Strikes . | . . . . . . . . Average Backups 18 | 3 9 17 21 22 19 21 21 Power 2 | . 1 3 3 3 2 1 1 Propulsion 2 | 1 2 1 2 2 1 3 2 Utility 7 | . 1 5 7 9 6 11 13 Weapon 6 | . 5 6 8 8 8 5 2 Tool/Special . | . . . . . . . . Unused Backups 38 | . 2 . . . 6 13 17 Power 3 | . . . . . 1 1 1 Propulsion 6 | . . . . . . 4 2 Utility 22 | . 1 . . . 4 7 10 Weapon 5 | . 1 . . . 1 1 2 Tool/Special 2 | . . . . . . . 2 Average Slot Usage (%) 91 | . 100 99 78 100 76 91 98 Engine 8 | . 14 14 14 14 4 1 . Core 2 | . . . . . . 7 9 Treads 22 | . 25 28 28 28 11 17 24 Wheel 4 | . 2 . . . 10 9 1 Device 3 | . 2 . . . 11 5 1 Storage 11 | . 14 14 14 14 9 9 9 Processor 7 | . . . . . 12 17 11 Hackware 1 | . . . . . . . 20 Protection 10 | . 11 13 14 14 2 13 2 Energy Cannon 1 | . . . . . . 1 8 Ballistic Gun 13 | . 28 27 7 27 6 3 . Impact Weapon 1 | . . . . . 3 4 . Peak Build Rating 47 | 7 8 10 13 13 28 47 39 Average Rating 20 | 5 7 9 9 12 18 36 37 On Entrance 13 | . 7 8 10 13 12 26 31 Avg Prop Armor Cover (%) 13 | . . . . . 16 11 16 Naked Turns . | . . . . . . . . Heaviest Build 102 | 14 91 93 96 96 98 101 102 Greatest Support 62 | 20 40 40 40 40 60 42 62 Greatest Overweight (x) 27 | . 2 2 2 2 27 10 10 Average Overweight (x) 3 | . . 2 2 2 3 4 2 Largest Inventory Capacity 25 | 8 25 25 25 25 25 25 25 Average Capacity 23 | 7 17 25 25 25 24 22 25 Most Carried 25 | 5 14 20 25 25 25 25 24 Average Carried 19 | 3 9 17 22 24 21 22 21 Final Capacity 25 | 8 25 25 25 25 20 25 25 Final Carried 25 | 5 14 20 23 25 20 24 23 Class Distribution -------------------- 73% | Mutant 11% | Bothacker-Mutant 5% | Scavenger-Mutant 4% | Scavenger-Skirmisher 3% | Scavenger-Assassin Dominant Class ---------------- Mutant | -10/Materials Mutant | -10/Mines Mutant | -10/Exiles Mutant | -9/Mines Scavenger-Skirmisher | -8/Materials Mutant | -8/Garrison Bothacker-Mutant | -8/Materials Resources | -11 -10 -10 -10 -9 -8 -8 -8 ----------- Run | Yrd Mat Min Exi Min Mat Gar Mat Matter Collected 3083 | 288 269 473 133 110 989 684 137 Remotely . | . . . . . . . . Salvage Created 2740 | 128 322 188 . 27 856 990 229 Parts 174 | 8 29 11 . 4 45 66 11 Haulers Intercepted 5 | . 2 . . . 3 . . Recyclers Shooed 1 | . 1 . . . . . . Parts Field Recycled . | . . . . . . . . Retrieved Matter . | . . . . . . . . Parts Self-Destructed . | . . . . . . . . Prevented . | . . . . . . . . Parts Restored . | . . . . . . . . Kills | -11 -10 -10 -10 -9 -8 -8 -8 ------- Run | Yrd Mat Min Exi Min Mat Gar Mat Combat Hostiles Destroyed 74 | . 9 11 . 3 19 29 3 Guns 43 | . 9 5 . . 9 20 . Cannons 4 | . . . . . . 1 3 AOE 27 | . . 6 . 3 10 8 . Classes Destroyed 14 | 2 4 2 . . 4 2 . Worker 1 | . . . . . 1 . . Builder 3 | . . . . . 2 . 1 Tunneler 5 | 1 . 1 . 2 1 . . Hauler 5 | . 2 . . . 3 . . Recycler 5 | 1 . 1 . . 3 . . Watcher 3 | . 1 . . . 1 1 . Swarmer 25 | . 6 . . 3 7 9 . Cutter 2 | . . . . . . 2 . Grunt 26 | . 3 2 . . 8 10 3 Brawler 1 | . . . . . 1 . . Duelist 2 | . . . . . 1 . 1 Sentry 8 | . . 1 . . 2 5 . Programmer 3 | . . . . . . 3 . Assembled 8 | . . 8 . . . . . Best Kill Streak 8 | 2 3 7 . 5 8 6 2 Combat Bots Only 7 | . 3 7 . 3 4 6 2 Max Kills in Single Turn 4 | 1 1 3 . 4 3 3 1 Gunslinging . | . . . . . . . . Exploded 3 | . . 3 . 2 2 3 . Melee . | . . . . . . . . Uniques/NPCs Destroyed . | . . . . . . . . Combat | -11 -10 -10 -10 -9 -8 -8 -8 -------- Run | Yrd Mat Min Exi Min Mat Gar Mat Hostile Shots Fired 330 | . 36 37 . 3 167 55 32 Missed 100 | . 8 11 . 1 54 18 8 Hits 230 | . 28 26 . 2 113 37 24 Melee 14 | . . 13 . . . . 1 Projectile 216 | . 28 13 . 2 113 37 23 AOE 3 | . . . . . 1 2 . Critical Strikes 13 | . 1 1 . . 8 2 1 Damage Taken 3717 | . 240 605 . 14 1847 650 361 Core 685 | . 48 73 . 8 425 69 62 Absorbed by Shields 7 | . . . . . . 7 . Ignored by Resistances 22 | . . . . . . 18 4 Core Remaining (%) 74 | 100 . . . 48 . . . Volleys Fired 211 | 2 45 33 . 3 60 27 41 Largest 2 | 2 2 2 . 1 2 2 1 Hottest 122 | 40 40 53 . 33 122 122 85 Shots Fired 407 | 4 91 65 1 4 88 113 41 Gun 322 | 4 91 58 1 1 69 98 . Cannon 30 | . . . . . . 10 20 Launcher 26 | . . 7 . 3 12 4 . Special 29 | . . . . . 7 1 21 Kinetic 301 | 4 91 58 1 1 60 86 . Thermal 58 | . . . . . 16 22 20 Explosive 26 | . . 7 . 3 12 4 . Electromagnetic . | . . . . . . . . Robot Hit Streak 17 | 3 9 5 . . 17 16 9 Robot Miss Streak 6 | . 4 4 . 4 6 3 4 Penetration Max . | . . . . . . . . Secondary Targets 6 | . 1 1 . . 4 . . Max Gunslinging Chain 1 | . 1 1 . . 1 . . Autonomous 81 | . . . . . . 81 . Shots Hit Robots 244 | 3 51 32 . . 60 77 21 Core Hits 153 | 3 20 27 . 4 56 38 5 Critical Kills 1 | . . . . . . 1 . Critical Parts Destroyed 2 | . . . . . 1 1 . Critical Strikes 3 | . . . . . 1 2 . Destroy 2 | . . . . . . 2 . Smash 1 | . . . . . 1 . . Melee Attacks 51 | . . . . . 21 30 . Impact 51 | . . . . . 21 30 . Slashing . | . . . . . . . . Piercing . | . . . . . . . . Sneak Attacks 2 | . . . . . 2 . . Combat Hostiles . | . . . . . . . . Follow-up Attacks . | . . . . . . . . Damage Inflicted 6840 | 28 565 742 . 234 2336 2696 239 Guns 3536 | 28 564 303 . . 532 2109 . Cannons 273 | . . . . . . 60 213 Explosions 2768 | . . 432 . 234 1575 527 . Melee 229 | . . . . . 229 . . Ramming 34 | . 1 7 . . . . 26 Kinetic 3376 | 28 564 303 . . 472 2009 . Thermal 617 | . . . . 64 180 160 213 Explosive 2584 | . . 432 . 170 1455 527 . Electromagnetic . | . . . . . . . . Impact 229 | . . . . . 229 . . Slashing . | . . . . . . . . Piercing . | . . . . . . . . Highest Corruption 13 | . 1 7 7 7 11 13 13 Average Corruption 8 | . 1 6 7 7 11 11 13 Corruption Purged . | . . . . . . . . Corruption Blocked . | . . . . . . . . Effects 310 | . 3 66 42 14 22 116 47 Message Errors 74 | . 1 15 12 5 5 26 10 Matter Fused 80 | . . 16 8 3 4 33 16 Heat Flow Errors 43 | . . 12 2 2 4 18 5 Energy Discharges 33 | . . 7 8 1 1 11 5 Parts Rejected 1 | . . 1 . . . . . Parts Fused 5 | . . 1 . . . 4 . Data Loss (minor) 39 | . 1 7 7 . 4 13 7 Data Loss (major) 16 | . . 4 1 2 2 5 2 Misfires 7 | . 1 2 1 1 1 . 1 Alerts 7 | . . . 3 . 1 3 . Misdirections 3 | . . . . . . 3 . Weapon Failures 2 | . . 1 . . . . 1 Overload Shots . | . . . . . . . . Overflow Damage 230 | . . . . 51 128 51 . Projectiles . | . . . . . . . . Explosions 149 | . . . . 51 47 51 . Melee 81 | . . . . . 81 . . Knockbacks 1 | . . . . . 1 . . Impact 1 | . . . . . 1 . . Kinetic . | . . . . . . . . Secondary . | . . . . . . . . Self-Inflicted Damage 312 | . . 77 . . 180 55 . Shots 9 | . . 2 . . 5 2 . Rammed 5 | . 1 1 . . . . 3 Targets Rammed 5 | . 1 1 . . . . 3 Kicked . | . . . . . . . . Crushed . | . . . . . . . . Highest Temperature 282 | . 24 282 221 262 238 262 264 Average Temperature 74 | . 5 80 103 110 46 92 81 Received Heat Transfer 1275 | . 48 24 . . 927 114 162 Siege Activations . | . . . . . . . . Martial Activations . | . . . . . . . . Shielding Activations . | . . . . . . . . Robots Disrupted . | . . . . . . . . Combat Hostiles . | . . . . . . . . Robots Corrupted 1 | . . . . . 1 . . Combat Hostiles . | . . . . . . . . Parts Fried 1 | . . . . . 1 . . Impact Corruptions 2 | . . . . . 2 . . Robots Melted . | . . . . . . . . Combat Hostiles . | . . . . . . . . Parts Melted 4 | . . . . . 1 1 2 Heat Transferred 829 | . . . . 100 211 259 259 Parts Sabotaged . | . . . . . . . . Parts Stolen . | . . . . . . . . Parts Stripped . | . . . . . . . . Power Chain Reactions . | . . . . . . . . Alert | -11 -10 -10 -10 -9 -8 -8 -8 ------- Run | Yrd Mat Min Exi Min Mat Gar Mat Maximum Alert Level 5 | . . . . . 1 5 3 Low Security (%) 64 | 100 100 100 . 100 95 16 . Level 1 11 | . . . . . 4 21 36 Level 2 8 | . . . . . . 13 43 Level 3 5 | . . . . . . 11 20 Level 4 7 | . . . . . . 25 . Level 5 3 | . . . . . . 11 . High Security . | . . . . . . . . Max Security . | . . . . . . . . Peak Influence 1879 | 10 91 73 . 114 230 1879 915 Initial 915 | . . . . . . 99 915 Average 311 | 1 21 3 . 21 88 817 504 Influence Increases 3429 | 10 324 137 . 114 732 1930 182 Destroy 0b10 Robot/C 1480 | . 180 60 . 60 380 700 100 Destroy 0b10 Robot/NC 110 | 10 15 10 . 10 55 5 5 Destroy Leader 184 | . 26 10 . 10 88 30 20 Allied During Kill 52 | . . . . . . 44 8 Successful Hack 56 | . 13 . . . 5 30 8 Disable Machine 135 | . . 15 . 15 75 . 30 Anti-Garrison Action 950 | . . . . . . 950 . Destroy Structure 327 | . . 42 . 19 114 141 11 Partial Spotted 15 | . . . . . . 15 . Lose Combat Pursuer 120 | . 90 . . . 15 15 . Influence Decreases 3149 | 10 324 137 . 114 579 204 1781 Entered New Map 1018 | . . . . . . 54 964 Time Decay 1455 | 10 324 137 . 114 418 . 452 Lost Part 181 | . . . . . 161 10 10 Lost Ally 220 | . . . . . . 140 80 Purge Threat 275 | . . . . . . . 275 Squads Dispatched 10 | . 1 . . . 5 . 4 Investigation 3 | . . . . . 2 . 1 Extermination . | . . . . . . . . Reinforcement 4 | . 1 . . . . . 3 Assault . | . . . . . . . . Garrison 3 | . . . . . 3 . . Intercept . | . . . . . . . . Searches Triggered . | . . . . . . . . Construction Impeded . | . . . . . . . . Haulers Reinforced . | . . . . . . . . Active Scanning Responses . | . . . . . . . . Cargo Convoy Interrupts . | . . . . . . . . Stealth | -11 -10 -10 -10 -9 -8 -8 -8 --------- Run | Yrd Mat Min Exi Min Mat Gar Mat Distress Signals 9 | . 5 1 . . 1 . 2 Communications Jammed . | . . . . . . . . Distress Signals . | . . . . . . . . Times Spotted 124 | . 28 17 . 3 24 35 17 Peak Tracking Total 10 | . 4 10 . 3 4 6 6 Tactical Retreats 8 | . 5 1 . . 1 1 . Traps | -11 -10 -10 -10 -9 -8 -8 -8 ------- Run | Yrd Mat Min Exi Min Mat Gar Mat Traps Triggered 9 | . 1 . . . . 5 3 Indirectly . | . . . . . . . . Trap Hack Attempts . | . . . . . . . . Triggered . | . . . . . . . . Disarmed . | . . . . . . . . Reprogrammed . | . . . . . . . . Reused . | . . . . . . . . Traps Extracted . | . . . . . . . . Installed . | . . . . . . . . Triggered . | . . . . . . . . Machines | -11 -10 -10 -10 -9 -8 -8 -8 ---------- Run | Yrd Mat Min Exi Min Mat Gar Mat Machines Disabled 12 | . . 1 . 1 5 3 2 Max in Single Turn 2 | . . 1 . 1 2 1 1 Garrison Relay 3 | . . . . . . 3 . Machines Repaired . | . . . . . . . . Machines Dismantled . | . . . . . . . . Machines Sabotaged . | . . . . . . . . Overloaded Fab Kills . | . . . . . . . . Hacking | -11 -10 -10 -10 -9 -8 -8 -8 --------- Run | Yrd Mat Min Exi Min Mat Gar Mat Machines Accessed 24 | . 4 . 2 . 8 4 6 Terminals 16 | . 4 . . . 4 4 4 Fabricators . | . . . . . . . . Repair Stations . | . . . . . . . . Recycling Units 2 | . . . . . 1 . 1 Scanalyzers 3 | . . . . . 2 . 1 Garrison Access 1 | . . . . . 1 . . Total Hacks 58 | . 12 . 2 . 19 7 18 Successful 24 | . 5 . 2 . 6 3 8 Failed 33 | . 7 . . . 12 4 10 Catastrophic 6 | . . . . . 3 . 3 Database Lockouts 1 | . . . . . 1 . . Manual 16 | . . . 1 . 9 . 6 Terminals 36 | . 12 . . . 10 7 7 Fabricators . | . . . . . . . . Repair Stations . | . . . . . . . . Recycling Units 9 | . . . . . 2 . 7 Scanalyzers 10 | . . . . . 6 . 4 Garrison Access 1 | . . . . . 1 . . Terminal Hacks 13 | . 5 . 2 . 2 3 1 Record 1 | . . . 1 . . . . Prototype ID Bank 1 | . 1 . . . . . . Open Door 1 | . . . . . . 1 . Emergency Access Points 2 | . 1 . . . . 1 . Unreport Threat 1 | . . . . . 1 . . Locate Traps 2 | . 2 . . . . . . Hauler Manifests 1 | . . . . . 1 . . Zone Layout 2 | . 1 . . . . . 1 Security Stations 1 | . . . . . . 1 . Proto ID Catalog 1 | . . . 1 . . . . Fabricator Hacks . | . . . . . . . . Repair Station Hacks . | . . . . . . . . Recycling Unit Hacks 5 | . . . . . 1 . 4 Process 1 | . . . . . . . 1 Report Inventory 1 | . . . . . . . 1 Retrieve Matter 2 | . . . . . . . 2 Retrieve Components 1 | . . . . . 1 . . Scanalyzer 5 | . . . . . 2 . 3 Insert Component 1 | . . . . . . . 1 Analyze 1 | . . . . . . . 1 Retrieve Study 3 | . . . . . 2 . 1 Garrison Access Hacks 1 | . . . . . 1 . . Unlock Access 1 | . . . . . 1 . . Unauthorized Hacks . | . . . . . . . . Terminals . | . . . . . . . . Fabricators . | . . . . . . . . Repair Stations . | . . . . . . . . Recycling Units . | . . . . . . . . Scanalyzers . | . . . . . . . . Garrison Access . | . . . . . . . . Data Cores Recovered . | . . . . . . . . Used . | . . . . . . . . Hacking Detections 16 | . 2 . . . 6 3 5 Full Trace Events 1 | . . . . . 1 . . Feedback Events . | . . . . . . . . Feedback Blocked . | . . . . . . . . Robot Schematics Acquired . | . . . . . . . . Robots Built . | . . . . . . . . Authchips . | . . . . . . . . Time . | . . . . . . . . Total Robot Build Rating . | . . . . . . . . Part Schematics Acquired 1 | . . . . . . . 1 Parts Built . | . . . . . . . . Authchips . | . . . . . . . . Time . | . . . . . . . . Total Part Build Rating . | . . . . . . . . Part Studies Acquired 3 | . . . . . 2 . 1 Parts Repaired . | . . . . . . . . Time . | . . . . . . . . Parts Recycled . | . . . . . . . . Recycled Matter 60 | . . . . . . . 60 Retrieved Matter 60 | . . . . . . . 60 Retrieved Components . | . . . . . . . . Parts Scanalyzed 1 | . . . . . . . 1 Part Schematics Acquired 1 | . . . . . . . 1 Parts Damaged . | . . . . . . . . Bothacking | -11 -10 -10 -10 -9 -8 -8 -8 ------------ Run | Yrd Mat Min Exi Min Mat Gar Mat Used RIF Installer 1 | . . . . . . 1 . Robots Hacked 8 | . . . . . . . 8 Non-combat 2 | . . . . . . . 2 Combat 6 | . . . . . . . 6 Robot Hacks Applied 11 | . . . . . . . 11 check_alert 1 | . . . . . . . 1 purge_threat 2 | . . . . . . . 2 map_route 1 | . . . . . . . 1 link_fov 1 | . . . . . . . 1 overwrite_iff 3 | . . . . . . . 3 streamctrl_high 1 | . . . . . . . 1 formatsys_high 2 | . . . . . . . 2 Relay Couplers Released 18 | . . . . . . 18 . Machine Destruction 15 | . . . . . . 15 . Programmers 3 | . . . . . . 3 . Attached 6 | . . . . . . . 6 Fabnet Peak Effective % . | . . . . . . . . Robots Rewired 6 | . . . . . . 6 . Allies Hacked 1 | . . . . . . 1 . Hacks Repelled . | . . . . . . . . Allies | -11 -10 -10 -10 -9 -8 -8 -8 -------- Run | Yrd Mat Min Exi Min Mat Gar Mat Total Allies 13 | . . . . . . 7 6 Largest Group 4 | . . . . . . 4 2 Highest-Rated Group 70 | . . . . . . 70 45 Highest-Rated Ally 29 | . . . . . . 25 29 Total Orders . | . . . . . . . . Ally Attacks 53 | . . . . . . 24 29 Total Damage 769 | . . . . . . 526 243 Kills 8 | . . . . . . 6 2 Allies Corrupted . | . . . . . . . . Allies Melted . | . . . . . . . . Intel | -11 -10 -10 -10 -9 -8 -8 -8 ------- Run | Yrd Mat Min Exi Min Mat Gar Mat Active Infowar (turns) 1712 | 26 297 . . . 1389 . . Terrain 1389 | . . . . . 1389 . . Seismic 323 | 26 297 . . . . . . Robot Analysis Total . | . . . . . . . . Derelict Logs Recovered 2 | . . 2 . . . . . Drone Launches . | . . . . . . . . Drone Recoveries . | . . . . . . . . Exploration | -11 -10 -10 -10 -9 -8 -8 -8 ------------- Run | Yrd Mat Min Exi Min Mat Gar Mat Turns Passed 11532 | 70 1481 2225 1524 579 1643 2873 1137 Spaces Moved 4288 | 60 582 661 475 178 636 1280 416 Core 22 | 1 . . . . 21 . . Treads 2519 | . 430 661 475 178 72 365 338 Legs . | . . . . . . . . Wheels 1747 | 59 152 . . . 543 915 78 Hover . | . . . . . . . . Flight . | . . . . . . . . Fastest Speed 50 | 50 80 320 320 320 130 135 211 Average Speed 237 | 79 209 320 320 320 205 195 215 Slowest Speed 1400 | 80 320 320 320 320 1400 272 325 Overloaded Moves . | . . . . . . . . Propulsion Burnouts . | . . . . . . . . Robots Hopped . | . . . . . . . . Potential Cave-ins . | . . . . . . . . Cave-ins Triggered . | . . . . . . . . Exploration Rate (%) 59 | 3 71 98 83 50 39 90 42 Regions Visited 7 Branch Regions 3 Pre-discovered Areas 1 | . . . 1 . . . . Known Exits Taken 1 | . . . . . 1 . . Unknown Exits Taken 5 | 1 1 1 1 1 . . . Scrap Searched 3 | . . 1 . 2 . . . Spaces Dug 31 | . . . . . 12 12 7 Terrain Destroyed 295 | . . 65 . 25 129 65 11 Melee 19 | . . . . . 7 12 . Projectile 25 | . . . . . 7 7 11 AOE 251 | . . 65 . 25 115 46 . Terrain Rammed . | . . . . . . . . Walls Destroyed . | . . . . . . . . Machines Disabled . | . . . . . . . . Actions | -11 -10 -10 -10 -9 -8 -8 -8 --------- Run | Yrd Mat Min Exi Min Mat Gar Mat Total 5278 | 74 766 709 482 185 842 1604 616 Wait 325 | 1 111 . . . 35 44 134 Move 4280 | 59 581 660 474 177 635 1278 416 Hop . | . . . . . . . . Pick Up 99 | 4 13 4 3 2 24 44 5 Fast Attach 22 | 7 . 1 . . 6 3 5 Attach 38 | . . 3 2 . 17 13 3 Detach 8 | . . . 2 . 2 4 . Swap 75 | 1 9 7 . 3 26 20 9 Drop 69 | . 6 . 1 . 16 46 . Fire 211 | 2 45 33 . 3 60 27 41 Melee 51 | . . . . . 21 30 . Ram . | . . . . . . . . Kick . | . . . . . . . . Crush 5 | . 1 1 . . . . 3 Escape Stasis 40 | . . . . . . 40 . Rewire 55 | . . . . . . 55 . Trap . | . . . . . . . . Miscellaneous . | . . . . . . . . Route ------- -11/Scrapyard -10/Materials (discovered 3 exits: [*Mat] / [*Min x2]) -10/Mines (discovered 3 exits: [*Mat x2] / *Exi) -10/Exiles -9/Mines -8/Materials (discovered 2 exits: Fac / Gar) -8/Garrison (discovered 3 exits: *Mat x3) -8/Materials (discovered 2 exits: *Fac x2) History --------- Turn | Location | Event 14 | -11/Scrapyard | Discovered new exit (range 16) 71 | -11/Scrapyard | Entered Materials 321 | -10/Materials | Discovered new exit (range 9) 323 | -10/Materials | Build established: Mutant 526 | -10/Materials | Discovered new exit (range 8) 736 | -10/Materials | Discovered new exit (range 8) 1552 | -10/Materials | Entered Mines 1717 | -10/Mines | Assembled infested the area 1822 | -10/Mines | Lost 3 parts (1n1u1w) 1823 | -10/Mines | Destroyed 7 combat bots 2156 | -10/Mines | Joined a pair of Derelicts in attacking an 0b10 outpost 2294 | -10/Mines | Deemed a non-threat by the Exiles lab entrance 2294 | -10/Mines | Discovered new exit (range 5) 2564 | -10/Mines | Learned location of 1 exit from Materials 2567 | -10/Mines | Discovered new exit (range 6) 2789 | -10/Mines | Discovered new exit (range 15) 3777 | -10/Mines | Entered Exiles 3858 | -10/Exiles | Met 8R-AWN 3912 | -10/Exiles | Met EX-HEX 3999 | -10/Exiles | Met EX-BIN 4088 | -10/Exiles | Aligned with FarCom system 4092 | -10/Exiles | Given EX-Vault access code 4178 | -10/Exiles | Opened EX-Vault 4197 | -10/Exiles | Found AWS/Gauss 4256 | -10/Exiles | Warned to stay clear of 0b10 Research branches 4358 | -10/Exiles | Met EX-DEC 4377 | -10/Exiles | Learned location of Zion (-6) 4538 | -10/Exiles | Discovered new exit (range 10) 4785 | -10/Exiles | Visited The Gauntlet 5301 | -10/Exiles | Left Exiles lab with AWS/Gauss 5301 | -10/Exiles | Entered Mines 5355 | -9/Mines | Core integrity fell below 50% 5829 | -9/Mines | Discovered new exit (range 5) 5880 | -9/Mines | Entered Materials 5880 | -8/Materials | Evolved 4 slots: Propulsion x1, Utility x3 5881 | -8/Materials | Identified exit to Factory 6061 | -8/Materials | Garrison activated, responded to threat 6153 | -8/Materials | Lost 4 parts (1n2u1w) 6382 | -8/Materials | Lost 5 parts (1p4n) 6546 | -8/Materials | Core integrity fell below 50% 6634 | -8/Materials | Lost 4 parts (1p1n2w) 6961 | -8/Materials | Identified exit to Garrison 6986 | -8/Materials | System corruption reached 10% 7235 | -8/Materials | Central database locked down 7523 | -8/Materials | Entered Garrison 7654 | -8/Garrison | Build established: Scavenger-Mutant 7831 | -8/Garrison | Triggered checkpoint 8003 | -8/Garrison | Triggered checkpoint 8006 | -8/Garrison | Triggered checkpoint 8014 | -8/Garrison | Build established: Mutant 8137 | -8/Garrison | Learned Materials security intel 8254 | -8/Garrison | Discovered new exit (range 13) 8494 | -8/Garrison | Rescued a captive Derelict 8521 | -8/Garrison | Discovered new exit (range 10) 8611 | -8/Garrison | Triggered checkpoint 8785 | -8/Garrison | Garrison Relay disabled 8981 | -8/Garrison | Triggered checkpoint 9005 | -8/Garrison | Triggered checkpoint 9017 | -8/Garrison | Triggered checkpoint 9078 | -8/Garrison | Garrison Relay disabled 9177 | -8/Garrison | Core integrity fell below 20% 9424 | -8/Garrison | Discovered new exit (range 12) 9429 | -8/Garrison | Triggered checkpoint 9643 | -8/Garrison | Triggered checkpoint 9792 | -8/Garrison | Garrison Relay disabled 10137 | -8/Garrison | Triggered checkpoint 10176 | -8/Garrison | AWS/Gauss suddenly broke down 10184 | -8/Garrison | Lost 3 allies 10257 | -8/Garrison | Installed Relay Interface Framework 10396 | -8/Garrison | Entered Materials 10556 | -8/Materials | Build established: Bothacker-Mutant 10911 | -8/Materials | Discovered exit to Factory (range 82) 11144 | -8/Materials | Discovered exit to Factory (range 5) 11533 | -8/Materials | Destroyed by G-47 Trooper with Particle Gun Last Messages --------------- 11433_ U-05 Engineer builds a Wall. 11433_ Detecting nearby Garrison Access. 11444_ System corrupted: Component data lost. 11476_ H1O2HDCS|X6X PJTX 5 &9/, 11493_ System corrupted: Heat flow error (+288). 11512_ System corrupted: Matter fused (-9). 11515_ O-16 Technician: "IFF HANDSHAKE FAILED. SECURING TERMINAL." 11521_ U-05 Engineer builds a Wall. 11522_ U-05 Engineer destroyed. 11522_ ALERT: Hostiles spotted, dispatching reinforcements to Terminal M002. 11524_ Acquired 16 matter. 11528_ 9WM//RQZWR>CV95QSXDKJ0Q# 11528_ Triggered Alarm Trap. 11528_ An alarm sounds. 11528_ ALERT: Alarm triggered, dispatching investigation squad. 11530_ Slammed into G-47 Trooper. 11532_ G-47 Trooper suffers critical hit (Burn). 11532_ Slammed into G-47 Trooper. 11533_ U-05 Engineer lays Concrete. Map ----- +----------------------------------------------------+ | # """ #???????????????????????? | | # ""? #???????????????????????? | | + """ #???????????????????????? | | # #???????????????????????? | | # """ =#???????????????????????? | | # ""? #???????????????????????? | | # ""? ?????????????????????????? | | # ?????????????????????????? | | #########????????????????????????? | | #????????????????????????????????? | | #???????????????????? ???????????? | | #????????????????#### ??????????? | | #????????????????? ??????????? | | #????????????????? #??????????? | | #########????????? #??????????? | | ????????? +??????????? | | ##########????????# #??????????? | | # #????????# #??????????? | | # """ #????????# #??????????? | | # """ ########## #??????????? | | # """ ## ## #??????????? | | # ## """ ## ######?????? | | # """ ## """ ## #?????? | | + """ ## """ ## #?????? | | # """ ## ##!gg""" #?????? | | # ## + !gg@G" #?????? | | #####/########+####u g""" #?????? | | # #?????? | | < # #?????? | | # """ #?????? | | #+########+###"##+#### """ #?????? | | ## # # """ #?????? | | """ ##""" [ + T # #?????? | | """"" ##""" # u #?????? | | """"" ##""" # Y # ? #?????? | | """"" ## # ** #####?? #?????? | | """ ## !# *! #??????? #?????? | | ######### ######??????????????? | | !#???????###???????????????????? | | #?????????????????????????????? | | #######?????????????????????????????? | | ????????????????????????????????????? | | ????????????????????????????????????? | | | | | | | | | | | | | | | +----------------------------------------------------+ Best States ------------- Heat Dissipation 45 Energy Generation 15 Energy Capacity 265 Matter Stores 300 Matter Capacity 300 Sight Range 16 Terrain Scan Range 16 Terrain Scan Density 85 Armor Coverage 300 Resistance: KI 20 Utility Shielding 33 Evasion (%) 44 Targeting Accuracy 11 Core Analysis 6 Recoil Reduction 3 Relay Coupler Types 3 Relay Coupler Value 83 Item Schematics ----------------- Hcp. Storage Unit | -8/Materials | Scanalyzed Robot Schematics ------------------ None Fabricated ------------ Nothing Repaired ---------- Nothing Studied --------- Rocket Launcher | -8/Materials | Hacked Adv. Treads | -8/Materials | Hacked Arm. Treads | -8/Materials | Hacked Alien Tech Used ----------------- None Achievements -------------- None Challenges ------------ None Game ------ Seed SegregatorThiefStorm Manual? 0 Play Time 01:08:05 Cumulative 488.7 hours Start 2026.09.14 @ 09:22:00 End 2026.09.14 @ 10:34:26 Sessions 1 Manual Loads 0 Difficulty Rogue Special Mode None Game No. 358 Rogue 358 Adventurer 0 Explorer 0 Win Type - Total 10 Types 4/0/4/2/0/0/0/0/0/0 Lore% 63 Gallery% 72 Achievement% 59 Wizard Run 0 Options --------- Layout 2 ASCII 0 Keyboard 1 Movement Vi Keybinds 0 Fullscreen 2 Font 32/Smallcaps Map View 77x44 Zoom Use 0% Tactical HUD 1 Map Filters NONE Filters NONE Steam 1 RUN: f1a2728a-65d6-4fc5-9372-cea1b8d63932